Workbook

Sheet Sheet1
A1: Roots of a quadratic
A3: a: | B3: 1
A4: b: | B4: 0
A5: c: | B5: -1
A8: Roots
B9: 1
B10: -1

Sheet Chart
A4: x | B4: y
A5: -10 | B5: =A5*A5+2*A5-3 -> 77
A6: -9.99 | B6: =A6*A6+2*A6-3 -> 76.8201
A7: -9.98 | B7: 76.6404
A8: -9.97 | B8: 76.4609
A9: -9.96 | B9: 76.2816
A10: -9.95 | B10: 76.1025
A11: -9.94 | B11: 75.9236
A12: -9.93 | B12: 75.7449
A13: -9.92 | B13: 75.5664
A14: -9.91 | B14: 75.3881
A15: -9.9 | B15: 75.21
A16: -9.89 | B16: 75.0321
A17: -9.88 | B17: 74.8544
A18: -9.87 | B18: 74.6769
A19: -9.86 | B19: 74.4996
A20: -9.85 | B20: 74.3225
A21: -9.84 | B21: 74.1456
A22: -9.83 | B22: 73.9689
A23: -9.82 | B23: 73.7924
A24: -9.81 | B24: 73.6161
A25: -9.8 | B25: 73.44
A26: -9.79 | B26: 73.2641
A27: -9.78 | B27: 73.0884
A28: -9.77 | B28: 72.9129
A29: -9.76 | B29: 72.7376
A30: -9.75 | B30: 72.5625
A31: -9.74 | B31: 72.3876
A32: -9.73 | B32: 72.2129
A33: -9.72 | B33: 72.0384
A34: -9.71 | B34: 71.8641
A35: -9.7 | B35: 71.69
A36: -9.69 | B36: 71.5161
A37: -9.68 | B37: 71.3424
A38: -9.67 | B38: 71.1689
A39: -9.66 | B39: 70.9956
A40: -9.65 | B40: 70.8225
A41: -9.64 | B41: 70.6496
A42: -9.63 | B42: 70.4769
A43: -9.62 | B43: 70.3044
A44: -9.61 | B44: 70.1321
A45: -9.6 | B45: 69.96
A46: -9.59 | B46: 69.7881
A47: -9.58 | B47: 69.6164
A48: -9.57 | B48: 69.4449
A49: -9.56 | B49: 69.2736
A50: -9.55 | B50: 69.1025
A51: -9.54 | B51: 68.9316
A52: -9.53 | B52: 68.7609
A53: -9.52 | B53: 68.5904
A54: -9.51 | B54: 68.4201
A55: -9.5 | B55: 68.25
A56: -9.49 | B56: 68.0801
A57: -9.48 | B57: 67.9104
A58: -9.47 | B58: 67.7409
A59: -9.46 | B59: 67.5716
A60: -9.45 | B60: 67.4025
A61: -9.44 | B61: 67.2336
A62: -9.43 | B62: 67.0649
A63: -9.42 | B63: 66.8964
A64: -9.41 | B64: 66.7281
A65: -9.4 | B65: 66.56
A66: -9.39 | B66: 66.3921
A67: -9.38 | B67: 66.2244
A68: -9.37 | B68: 66.0569
A69: -9.36 | B69: 65.8896
A70: -9.35 | B70: =A70*A70+2*A70-3 -> 65.7225
A71: -9.34 | B71: 65.5556
A72: -9.33 | B72: 65.3889
A73: -9.32 | B73: 65.2224
A74: -9.31 | B74: 65.0561
A75: -9.3 | B75: 64.89
A76: -9.29 | B76: 64.7241
A77: -9.28 | B77: 64.5584
A78: -9.27 | B78: 64.3929
A79: -9.26 | B79: 64.2276
A80: -9.25 | B80: 64.0625
A81: -9.24 | B81: 63.8976
A82: -9.23 | B82: 63.7329
A83: -9.22 | B83: 63.5684
A84: -9.21 | B84: 63.4041
A85: -9.2 | B85: 63.24
A86: -9.19 | B86: 63.0761
A87: -9.18 | B87: 62.9124
A88: -9.17 | B88: 62.7489
A89: -9.16 | B89: 62.5856
A90: -9.15 | B90: 62.4225
A91: -9.14 | B91: 62.2596
A92: -9.13 | B92: 62.0969
A93: -9.12 | B93: 61.9344
A94: -9.11 | B94: 61.7721
A95: -9.1 | B95: 61.61
A96: -9.09 | B96: 61.4481
A97: -9.08 | B97: 61.2864
A98: -9.07 | B98: 61.1249
A99: -9.06 | B99: 60.9636
A100: -9.05 | B100: 60.8025
A101: -9.04 | B101: 60.6416
A102: -9.03 | B102: 60.4809
A103: -9.02 | B103: 60.3204
A104: -9.01 | B104: 60.1601
A105: -9 | B105: 60
A106: -8.99 | B106: 59.8401
A107: -8.98 | B107: 59.6804
A108: -8.97 | B108: 59.5209
A109: -8.96 | B109: 59.3616
A110: -8.95 | B110: 59.2025
A111: -8.94 | B111: 59.0436
A112: -8.93 | B112: 58.8849
A113: -8.92 | B113: 58.7264
A114: -8.91 | B114: 58.5681
A115: -8.9 | B115: 58.41
A116: -8.89 | B116: 58.2521
A117: -8.88 | B117: 58.0944
A118: -8.87 | B118: 57.9369
A119: -8.86 | B119: 57.7796
A120: -8.85 | B120: 57.6225
A121: -8.84 | B121: 57.4656
A122: -8.83 | B122: 57.3089
A123: -8.82 | B123: 57.1524
A124: -8.81 | B124: 56.9961
A125: -8.8 | B125: 56.84
A126: -8.79 | B126: 56.6841
A127: -8.78 | B127: 56.5284
A128: -8.77 | B128: 56.3729
A129: -8.76 | B129: 56.2176
A130: -8.75 | B130: 56.0625
A131: -8.74 | B131: 55.9076
A132: -8.73 | B132: 55.7529
A133: -8.72 | B133: 55.5984
A134: -8.71 | B134: =A134*A134+2*A134-3 -> 55.4441
A135: -8.7 | B135: 55.29
A136: -8.69 | B136: 55.1361
A137: -8.68 | B137: 54.9824
A138: -8.67 | B138: 54.8289
A139: -8.66 | B139: 54.6756
A140: -8.65 | B140: 54.5225
A141: -8.64 | B141: 54.3696
A142: -8.63 | B142: 54.2169
A143: -8.62 | B143: 54.0644
A144: -8.61 | B144: 53.9121
A145: -8.6 | B145: 53.76
A146: -8.59 | B146: 53.6081
A147: -8.58 | B147: 53.4564
A148: -8.57 | B148: 53.3049
A149: -8.56 | B149: 53.1536
A150: -8.55 | B150: 53.0025
A151: -8.54 | B151: 52.8516
A152: -8.53 | B152: 52.7009
A153: -8.52 | B153: 52.5504
A154: -8.51 | B154: 52.4001
A155: -8.5 | B155: 52.25
A156: -8.49 | B156: 52.1001
A157: -8.48 | B157: 51.9504
A158: -8.47 | B158: 51.8009
A159: -8.46 | B159: 51.6516
A160: -8.45 | B160: 51.5025
A161: -8.44 | B161: 51.3536
A162: -8.43 | B162: 51.2049
A163: -8.42 | B163: 51.0564
A164: -8.41 | B164: 50.9081
A165: -8.4 | B165: 50.76
A166: -8.39 | B166: 50.6121
A167: -8.38 | B167: 50.4644
A168: -8.37 | B168: 50.3169
A169: -8.36 | B169: 50.1696
A170: -8.35 | B170: 50.0225
A171: -8.34 | B171: 49.8756
A172: -8.33 | B172: 49.7289
A173: -8.32 | B173: 49.5824
A174: -8.31 | B174: 49.4361
A175: -8.3 | B175: 49.29
A176: -8.29 | B176: 49.1441
A177: -8.28 | B177: 48.9984
A178: -8.27 | B178: 48.8529
A179: -8.26 | B179: 48.7076
A180: -8.25 | B180: 48.5625
A181: -8.24 | B181: 48.4176
A182: -8.23 | B182: 48.2729
A183: -8.22 | B183: 48.1284
A184: -8.21 | B184: 47.9841
A185: -8.2 | B185: 47.84
A186: -8.19 | B186: 47.6961
A187: -8.18 | B187: 47.5524
A188: -8.17 | B188: 47.4089
A189: -8.16 | B189: 47.2656
A190: -8.15 | B190: 47.1225
A191: -8.14 | B191: 46.9796
A192: -8.13 | B192: 46.8369
A193: -8.12 | B193: 46.6944
A194: -8.11 | B194: 46.5521
A195: -8.1 | B195: 46.41
A196: -8.09 | B196: 46.2681
A197: -8.08 | B197: 46.1264
A198: -8.07 | B198: =A198*A198+2*A198-3 -> 45.9849
A199: -8.06 | B199: 45.8436
A200: -8.05 | B200: 45.7025
A201: -8.04 | B201: 45.5616
A202: -8.03 | B202: 45.4209
A203: -8.02 | B203: 45.2804
... 1802 more rows

Sheet Sheet3
